bitfinex-derivatives/quotes_SOLF0:USTF0_20250111
["timestamp","ask_amount","ask_price","bid_price","bid_amount"]
[1736599547787,7.09088946,187.42,187.36,7.09088946]
[1736599547980,7.09088946,187.44,187.41,2.6691]
[1736599548879,7.09088946,187.42,187.4,2.6692]
[1736599550685,7.09088946,187.42,187.41,2.6691]
[1736599554880,7.09088946,187.42,187.39,2.6694]
[1736599559391,7.09088946,187.42,187.4,2.6692]
[1736599559893,7.09088946,187.41,187.4,2.6692]
[1736599561688,1.6716,187.48,187.37,7.09088946]
[1736599561889,7.09088946,187.47,187.39,7.09088946]
[1736599563690,7.09088946,187.47,187.45,2.6684]
[1736599565389,3.1088,187.49,187.41,7.09088946]
[1736599565589,7.09088946,187.47,187.41,7.09088946]
[1736599567187,7.09088946,187.47,187.34,5.3402]
[1736599567392,7.09088946,187.47,187.4,7.09088946]
[1736599567788,7.09088946,187.47,187.44,2.6685]
[1736599568297,7.09088946,187.45,187.41,2.669]
[1736599568494,7.09088946,187.43,187.41,2.669]
[1736599569895,2.6685,187.46,187.41,2.669]
[1736599570196,7.09088946,187.44,187.41,2.669]
[1736599570397,7.09088946,187.44,187.37,7.09088946]
[1736599571199,7.09088946,187.44,187.42,2.6689]
[1736599572298,7.09088946,187.44,187.43,2.6688]
[1736599573807,7.09088946,187.44,187.36,2.6698]
[1736599574010,7.09088946,187.44,187.33,54.45778511]
[1736599574211,7.09088946,187.42,187.36,7.09088946]
[1736599574411,7.09088946,187.42,187.4,2.6692]
[1736599575312,7.09088946,187.42,187.41,2.6691]
[1736599575814,2.6686,187.45,187.41,2.6691]
[1736599576112,7.09088946,187.42,187.41,2.6691]
[1736599576713,7.09088946,187.42,187.36,7.09088946]
[1736599576914,7.09088946,187.42,187.39,2.6693]
[1736599577511,7.09088946,187.42,187.4,2.6692]
[1736599579113,2.6687,187.44,187.4,2.6692]
[1736599579310,7.09088946,187.42,187.4,2.6692]
[1736599579812,7.09088946,187.42,187.32,54.17006013]
[1736599580015,7.09088946,187.4,187.38,2.6695]
[1736599581413,7.09088946,187.4,187.39,2.6694]
[1736599586219,7.09088946,187.4,187.38,2.6695]
[1736599589514,7.09088946,187.42,187.4,2.6692]
[1736599589923,2.6687,187.44,187.4,2.6692]
[1736599590322,7.09088946,187.42,187.4,2.6692]
[1736599591620,7.09088946,187.42,187.41,2.6691]
[1736599592523,7.09088946,187.42,187.35,7.09088946]
[1736599592719,7.09088946,187.42,187.4,2.6692]
[1736599597331,9.75998946,187.42,187.31,13.66520893]
[1736599597522,7.09088946,187.39,187.32,7.09088946]
[1736599599135,2.6691,187.42,187.38,2.6695]
[1736599599329,7.09088946,187.39,187.38,2.6695]
[1736599613033,5.38,187.47,187.33,7.09088946]
[1736599613237,7.09088946,187.44,187.37,7.09088946]
[1736599614237,7.09088946,187.44,187.43,2.6687]
[1736599616441,7.09088946,187.44,187.42,2.6689]
[1736599618441,7.09088946,187.44,187.4,2.6691]
[1736599618642,7.09088946,187.42,187.37,7.09088946]
[1736599619242,7.09088946,187.42,187.35,7.09088946]
[1736599619939,7.09088946,187.42,187.39,2.6693]
[1736599620131,7.09088946,187.4,187.34,54.49780435]
[1736599620337,7.09088946,187.4,187.34,49.11780435]
[1736599620734,7.09088946,187.4,187.37,2.6696]
[1736599621642,7.09088946,187.4,187.33,14.474849]
[1736599621643,7.09088946,187.4,187.38,2.6695]
[1736599622742,7.09088946,187.4,187.33,7.09088946]
[1736599622945,7.09088946,187.38,187.37,2.6696]
[1736599623348,7.09088946,187.38,187.31,26.53435793]
[1736599623547,7.09088946,187.35,187.34,2.67]
[1736599625143,7.09088946,187.37,187.36,2.6697]
[1736599626148,7.09088946,187.4,187.35,7.09088946]
[1736599626338,7.09088946,187.42,187.35,7.09088946]
[1736599627242,7.09088946,187.42,187.37,7.09088946]
[1736599628648,7.09088946,187.42,187.4,2.6691]
[1736599629942,7.09088946,187.42,187.37,7.09088946]
[1736599630142,7.09088946,187.42,187.41,2.6691]
[1736599631547,7.09088946,187.42,187.35,7.09088946]
[1736599631744,7.09088946,187.4,187.38,2.6695]
[1736599631941,7.09088946,187.4,187.33,7.09088946]
[1736599632144,7.09088946,187.38,187.32,50.75573062]
[1736599632444,3.2198,187.48,187.36,2.6698]
[1736599632445,7.09088946,187.39,187.36,2.6698]
[1736599635146,7.09088946,187.37,187.36,2.6698]
[1736599635352,7.09088946,187.37,187.31,5.06700893]
[1736599635353,9.76058946,187.37,187.32,2.6704]
[1736599635550,7.09088946,187.33,187.32,2.6704]
[1736599637149,7.09088946,187.33,187.31,5.06700893]
[1736599638557,2.6697,187.37,187.32,2.6703]
[1736599638752,7.09088946,187.33,187.32,2.6703]
[1736599638954,7.09088946,187.33,187.31,5.06700893]
[1736599639252,7.09088946,187.33,187.26,1.5888]
[1736599639555,7.09088946,187.3,187.26,1.5888]
[1736599639747,7.09088946,187.3,187.28,2.6708]
[1736599640452,7.09088946,187.32,187.26,1.5888]
[1736599641555,7.09088946,187.32,187.3,2.6706]
[1736599641751,7.09088946,187.32,187.26,8.67968946]
[1736599642350,7.09088946,187.32,187.27,2.671]
[1736599642651,7.09088946,187.32,187.26,8.67968946]
[1736599643357,7.09088946,187.32,187.3,2.6706]
[1736599645153,7.09088946,187.32,187.31,2.6705]
[1736599652462,7.09088946,187.32,187.24,7.09088946]
[1736599652663,7.09088946,187.29,187.24,7.09088946]
[1736599652863,7.09088946,187.29,187.28,2.671]
[1736599655759,7.09088946,187.29,187.27,2.6711]
[1736599656163,7.09088946,187.29,187.23,7.09088946]
[1736599656362,7.09088946,187.29,187.28,2.671]
[1736599657058,2.6704,187.32,187.28,2.671]
[1736599657259,7.09088946,187.29,187.28,2.671]
[1736599657465,7.09088946,187.29,187.22,1.5498]
[1736599659068,7.09088946,187.29,187.26,2.6712]
[1736599659462,7.09088946,187.29,187.23,7.09088946]
[1736599659668,7.09088946,187.31,187.25,7.09088946]
[1736599660075,7.09088946,187.31,187.3,2.6706]
[1736599664874,2.6699,187.36,187.32,2.6703]
[1736599665068,7.09088946,187.33,187.32,2.6703]
[1736599680277,3.1412,187.39,187.29,7.09088946]
[1736599680483,7.09088946,187.37,187.31,7.09088946]
[1736599680683,2.6688,187.43,187.35,7.09088946]
[1736599680884,7.09088946,187.41,187.35,7.09088946]
[1736599681387,9.19763294,187.45,187.42,2.6689]
[1736599681589,7.09088946,187.43,187.42,2.6689]
[1736599682693,7.09088946,187.43,187.37,7.09088946]
[1736599682884,7.09088946,187.43,187.41,2.6691]
[1736599683689,7.09088946,187.43,187.35,7.09088946]
[1736599683892,7.09088946,187.41,187.33,1.5975]
[1736599684088,7.09088946,187.39,187.33,7.09088946]
[1736599684484,7.09088946,187.39,187.37,2.6697]
[1736599685592,7.09088946,187.39,187.36,2.6698]
[1736599686390,7.09088946,187.39,187.31,7.09088946]
[1736599686584,7.09088946,187.39,187.35,2.6699]
[1736599689296,7.09088946,187.39,187.36,2.6698]
[1736599697801,7.09088946,187.43,187.37,7.09088946]
[1736599699195,7.09088946,187.43,187.41,2.669]
[1736599700100,7.09088946,187.43,187.37,7.09088946]
[1736599700300,7.09088946,187.45,187.37,7.09088946]
[1736599701001,7.09088946,187.45,187.43,2.6687]
[1736599712816,7.09088946,187.45,187.32,7.38395954]
[1736599713016,7.09088946,187.43,187.32,7.38395954]
[1736599713517,7.09088946,187.43,187.35,7.09088946]
[1736599713916,7.09088946,187.43,187.4,2.6691]
[1736599717316,7.09088946,187.43,187.35,7.09088946]
[1736599717615,7.09088946,187.43,187.41,2.6691]
[1736599718721,7.09088946,187.43,187.42,2.669]
[1736599724432,7.09088946,187.43,187.41,2.6691]
[1736599729534,9.75978946,187.43,187.39,2.6693]
[1736599736242,7.09088946,187.41,187.34,7.38395954]
[1736599736541,7.09088946,187.39,187.34,7.38395954]
[1736599737440,7.09088946,187.39,187.36,2.6697]
[1736599740537,7.09088946,187.39,187.37,2.6696]
[1736599741037,1.5838,187.47,187.35,7.09088946]
[1736599741243,7.09088946,187.43,187.37,7.09088946]
[1736599741841,7.09088946,187.43,187.39,2.6693]
[1736599742041,7.09088946,187.41,187.32,33.97767741]
[1736599742236,7.09088946,187.41,187.34,7.09088946]
[1736599742435,7.09088946,187.41,187.38,2.6695]
[1736599744445,7.09088946,187.42,187.4,2.6692]
[1736599744745,1.5838,187.47,187.38,7.09088946]
[1736599745044,1.5838,187.47,187.32,12.08760308]
[1736599745045,7.09088946,187.46,187.44,2.6687]
[1736599746643,1.5838,187.47,187.44,2.6687]
[1736599746844,7.09088946,187.46,187.44,2.6687]
[1736599751648,12.47088946,187.46,187.36,7.38395954]
[1736599751845,7.09088946,187.38,187.36,7.38395954]
[1736599752747,7.09088946,187.38,187.32,4.70364354]
[1736599753652,7.09088946,187.38,187.36,2.6698]
[1736599755345,7.09088946,187.38,187.35,2.6699]
[1736599756051,7.09088946,187.38,187.36,2.6698]
[1736599758353,7.09088946,187.38,187.35,2.6699]
[1736599759755,7.09088946,187.38,187.36,2.6698]
[1736599768162,2.669,187.43,187.39,2.6694]
[1736599768463,7.09088946,187.4,187.39,2.6694]
[1736599773563,7.09088946,187.41,187.35,7.09088946]
[1736599773766,7.09088946,187.41,187.4,2.6692]
[1736599776061,2.6694,187.39,187.32,4.70364354]
[1736599776262,7.09088946,187.37,187.32,4.70364354]
[1736599777265,7.09088946,187.37,187.36,2.6698]
[1736599778863,9.76058946,187.37,187.32,4.70364354]
[1736599779063,7.09088946,187.34,187.32,4.70364354]
[1736599779765,7.09088946,187.34,187.32,7.37404354]
[1736599780762,9.76108946,187.34,187.3,2.6707]
[1736599780969,7.09088946,187.32,187.3,2.6707]
[1736599788670,7.09088946,187.32,187.26,7.09088946]
[1736599788871,7.09088946,187.32,187.29,2.6708]
[1736599792773,7.09088946,187.3,187.24,56.78399495]
[1736599793067,7.09088946,187.28,187.24,56.78399495]
[1736599794276,9.76188946,187.28,187.24,59.45549495]
[1736599794575,4.8105,187.39,187.24,56.78399495]
[1736599794777,7.09088946,187.29,187.25,2.6714]
[1736599794979,4.8105,187.39,187.24,63.87488441]
[1736599795177,7.09088946,187.32,187.28,2.6708]
[1736599796876,9.76128946,187.32,187.28,2.6708]
[1736599798884,7.09088946,187.3,187.29,2.6708]
[1736599801988,2.6704,187.32,187.29,2.6708]
[1736599802188,7.09088946,187.31,187.29,2.6708]
[1736599806690,2.6704,187.32,187.29,2.6708]
[1736599806882,7.09088946,187.31,187.29,2.6708]
[1736599808087,4.8105,187.39,187.3,7.09088946]
[1736599808292,10.30848946,187.39,187.32,7.09088946]
[1736599808490,8.66508946,187.39,187.32,7.09088946]
[1736599808691,7.09088946,187.39,187.32,7.09088946]
[1736599810085,7.09088946,187.39,187.36,2.6698]
[1736599811094,2.6693,187.4,187.36,2.6698]
[1736599811292,7.09088946,187.41,187.34,7.09088946]
[1736599811495,7.09088946,187.41,187.36,7.09088946]
[1736599812395,7.09088946,187.41,187.38,2.6695]
[1736599813593,2.669,187.42,187.38,2.6695]
[1736599814496,7.09088946,187.41,187.36,7.09088946]
[1736599814691,7.09088946,187.39,187.34,7.09088946]
[1736599814892,7.09088946,187.39,187.3,1.6789]
[1736599815092,2.6699,187.36,187.3,11.44028946]
[1736599815993,9.76058946,187.37,187.3,8.76978946]
[1736599817191,9.76058946,187.37,187.32,2.6704]
[1736599817697,2.6697,187.37,187.32,2.6704]
[1736599817898,7.09088946,187.36,187.32,2.6704]
[1736599818799,7.09088946,187.36,187.33,2.6702]
[1736599823094,7.09088946,187.38,187.3,8.76978946]
[1736599823299,7.09088946,187.38,187.35,2.6699]
[1736599824199,7.09088946,187.38,187.36,2.6698]
[1736599826192,7.09088946,187.38,187.35,2.6699]
[1736599832805,7.09088946,187.38,187.36,2.6698]
[1736599838507,6.9144,187.44,187.31,7.09088946]
[1736599838707,7.09088946,187.42,187.35,7.09088946]
[1736599839214,7.09088946,187.42,187.4,2.6691]
[1736599839712,7.09088946,187.42,187.35,7.09088946]
[1736599840013,9.75988946,187.42,187.35,7.09088946]
[1736599840513,9.75988946,187.42,187.38,2.6694]
[1736599841507,7.09088946,187.42,187.38,2.6694]
[1736599842609,9.75988946,187.42,187.38,2.6694]
[1736599843405,7.09088946,187.4,187.36,2.6697]
[1736599843606,7.09088946,187.4,187.33,7.09088946]
[1736599843914,7.09088946,187.38,187.31,14.474849]
[1736599844712,7.09088946,187.38,187.34,2.67]
[1736599847215,7.09088946,187.38,187.35,2.6699]
[1736599848816,7.09088946,187.36,187.33,2.6701]
[1736599849517,2.6697,187.37,187.33,2.6701]
[1736599849716,7.09088946,187.36,187.33,2.6701]
[1736599856925,2.67,187.35,187.31,2.6705]
[1736599857118,7.09088946,187.34,187.28,7.09088946]
[1736599859128,9.76098946,187.34,187.3,2.6705]
[1736599861727,7.09088946,187.34,187.28,7.09088946]
[1736599861929,7.09088946,187.34,187.31,2.6705]
[1736599864632,7.09088946,187.34,187.28,7.09088946]
[1736599864834,7.09088946,187.34,187.32,2.6704]
[1736599867834,7.09088946,187.34,187.28,7.09088946]
[1736599868035,7.09088946,187.36,187.33,2.6702]
[1736599869532,9.76078946,187.36,187.33,2.6702]
[1736599870632,9.76098946,187.34,187.31,2.6704]
[1736599872436,7.09088946,187.34,187.31,2.6704]
[1736599880140,7.09088946,187.34,187.26,7.09088946]
[1736599880141,9.76098946,187.34,187.3,2.6706]
[1736599882249,2.6707,187.3,187.26,2.6712]
[1736599882448,7.09088946,187.28,187.24,54.09480601]
[1736599882950,7.09088946,187.28,187.26,2.6712]
[1736599884650,7.09088946,187.28,187.27,2.6711]
[1736599900357,7.09088946,187.28,187.26,2.6712]
[1736599917775,7.09088946,187.28,187.22,7.09088946]
[1736599917978,7.09088946,187.28,187.25,2.6713]
[1736599918473,7.09088946,187.28,187.21,49.13417388]
[1736599918772,7.09088946,187.26,187.23,2.6716]
[1736599919676,7.09088946,187.26,187.24,2.6715]
[1736599920473,7.09088946,187.26,187.19,1.5695]
[1736599920677,7.09088946,187.24,187.23,2.6716]
[1736599921277,9.76248946,187.24,187.2,2.672]
[1736599921472,7.09088946,187.21,187.2,2.672]
[1736599924176,7.09088946,187.22,187.2,2.672]
[1736599926878,7.09088946,187.22,187.19,2.6722]
[1736599927079,7.09088946,187.2,187.19,2.6722]
[1736599939001,7.09088946,187.2,187.18,7.827606]
[1736599944703,7.09088946,187.2,187.18,5.155306]
[1736599944908,7.09088946,187.2,187.16,2.6725]
[1736599946503,9.76298946,187.2,187.16,2.6725]
[1736599948000,7.09088946,187.18,187.16,2.6725]
[1736599953613,2.6721,187.2,187.17,2.6724]
[1736599953812,7.09088946,187.2,187.17,2.6724]
[1736599954208,7.09088946,187.2,187.18,2.6724]
[1736599959413,9.76298946,187.2,187.18,2.6724]
[1736599963317,9.76298946,187.2,187.12,8.67558946]
[1736599963518,7.09088946,187.18,187.12,1.5847]
[1736599963711,7.09088946,187.16,187.12,1.5847]
[1736599964811,7.09088946,187.16,187.14,2.6728]
[1736599967217,7.09088946,187.16,187.09,5.337774]
[1736599967419,7.09088946,187.16,187.09,12.42866346]
[1736599968219,7.09088946,187.16,187.12,2.6731]
[1736599971425,9.76358946,187.16,187.12,2.6731]
[1736599971723,7.09088946,187.14,187.12,2.6731]
[1736599973427,7.09088946,187.14,187.05,7.38395954]
[1736599973629,7.09088946,187.1,187.05,7.38395954]
[1736599974316,7.09088946,187.1,187.03,7.09088946]
[1736599975220,7.09088946,187.1,187.06,2.674]
[1736599975621,7.09088946,187.1,187.03,7.09088946]
[1736599976429,2.6731,187.13,187.08,2.6738]
[1736599976623,7.09088946,187.11,187.08,2.6738]
[1736599979628,1.5994,187.15,187.05,7.09088946]
[1736599979824,1.5826,187.16,187.07,7.09088946]
[1736599980030,7.09088946,187.14,187.07,7.09088946]
[1736599980531,7.09088946,187.14,187.12,2.6732]
[1736599982030,7.09088946,187.14,187.07,7.09088946]
[1736599982225,7.09088946,187.14,187.13,2.6731]
[1736599982431,7.09088946,187.14,187.07,7.09088946]
[1736599982631,7.09088946,187.12,187.07,7.09088946]
[1736599982832,7.09088946,187.12,187.11,2.6734]
[1736599986334,7.09088946,187.14,187.07,7.09088946]
[1736599986529,7.09088946,187.14,187.12,2.6732]
[1736599988834,7.09088946,187.14,187.11,2.6733]
[1736599989029,7.09088946,187.12,187.11,2.6733]
[1736599994444,7.09088946,187.12,187.1,2.6735]
[1736600018447,7.09088946,187.12,187.04,7.09088946]
[1736600018645,7.09088946,187.12,187.11,2.6734]
[1736600019549,7.09088946,187.12,187.1,2.6735]
[1736600021045,7.09088946,187.12,187.11,2.6734]
[1736600027062,2.673,187.14,187.11,2.6734]
[1736600027361,7.09088946,187.12,187.11,2.6734]
[1736600036968,186.3370622,187.25,187.11,7.09088946]
[1736600037175,7.09088946,187.2,187.13,7.09088946]
[1736600039175,7.09088946,187.2,187.17,2.6724]
[1736600039773,7.09088946,187.2,187.13,7.09088946]
[1736600041276,7.09088946,187.2,187.17,2.6724]
[1736600041477,1.6584,187.23,187.13,7.09088946]
[1736600041672,7.64794301,187.26,187.15,7.09088946]
[1736600041877,1.532,187.27,187.08,9.01915954]
[1736600041878,7.09088946,187.24,187.17,7.09088946]
[1736600042071,9.17994301,187.27,187.17,7.09088946]
[1736600042272,7.64794301,187.27,187.19,7.09088946]
[1736600042476,7.09088946,187.25,187.19,7.09088946]
[1736600042675,7.09088946,187.25,187.17,7.09088946]
[1736600042867,7.09088946,187.23,187.17,7.09088946]
[1736600043370,7.09088946,187.21,187.15,1.5309]
[1736600043575,7.09088946,187.19,187.15,1.5309]
[1736600043783,7.09088946,187.19,187.16,2.6725]
[1736600043975,7.09088946,187.19,187.15,1.5309]
[1736600044782,7.09088946,187.19,187.17,2.6725]
[1736600047083,7.09088946,187.19,187.1,1.6291]
[1736600047381,7.09088946,187.15,187.09,1.5609]
[1736600047975,7.09088946,187.13,187.12,2.6731]
[1736600048179,7.09088946,187.13,187.05,1.5407]
[1736600048381,7.09088946,187.13,187.05,8.63158946]
[1736600048782,7.09088946,187.13,187.1,2.6735]
[1736600049276,7.09088946,187.13,187.07,2.6739]
[1736600049482,7.09088946,187.13,187.06,7.09088946]
[1736600050885,7.09088946,187.13,187.11,2.6733]
[1736600054081,7.09088946,187.15,187.12,2.6732]
[1736600055084,7.09088946,187.15,187.13,2.6731]
[1736600060591,2.6723,187.19,187.16,2.6726]
[1736600060786,7.09088946,187.17,187.16,2.6726]
[1736600061888,2.6723,187.19,187.16,2.6726]
[1736600062190,7.09088946,187.19,187.17,2.6725]
[1736600062391,7.09088946,187.19,187.12,7.09088946]
[1736600062996,7.09088946,187.19,187.17,2.6724]
[1736600065089,3.1146,187.22,187.14,7.09088946]
[1736600065294,8.62388946,187.22,187.16,7.09088946]
[1736600065495,7.09088946,187.22,187.17,2.6724]
[1736600065688,7.09088946,187.22,187.16,7.09088946]
[1736600066292,7.09088946,187.22,187.19,2.6721]
[1736600067396,7.09088946,187.22,187.16,7.09088946]
[1736600067596,7.09088946,187.22,187.21,2.672]
[1736600070499,47.38695035,187.24,187.21,2.672]
[1736600070894,47.38695035,187.24,187.22,2.6718]
[1736600072892,47.38695035,187.24,187.21,2.6719]
[1736600075694,47.38695035,187.24,187.23,2.6717]
[1736600075890,7.09088946,187.24,187.23,2.6717]
[1736600076997,7.09088946,187.24,187.11,1.6774]
[1736600077195,9.76248946,187.24,187.16,7.09088946]
[1736600077789,9.76248946,187.24,187.2,2.672]
[1736600083000,7.09088946,187.22,187.2,2.672]
[1736600087608,7.09088946,187.22,187.16,7.09088946]
[1736600087802,7.09088946,187.22,187.21,2.6719]
[1736600087999,7.09088946,187.24,187.18,7.09088946]
[1736600088204,7.09088946,187.24,187.22,2.6718]
[1736600090703,2.6715,187.25,187.22,2.6718]
[1736600090899,7.09088946,187.23,187.22,2.6718]
[1736600091207,2.6715,187.25,187.22,2.6718]
[1736600091405,7.09088946,187.23,187.22,2.6718]
[1736600095709,7.09088946,187.23,187.21,2.6719]
[1736600100511,9.76258946,187.23,187.2,2.6721]
[1736600107220,7.09088946,187.23,187.21,2.6718]
[1736600109915,16.36401696,187.27,187.21,7.09088946]
[1736600110117,14.75781696,187.27,187.21,7.09088946]
[1736600110724,7.09088946,187.27,187.21,7.09088946]
[1736600111124,9.76208946,187.27,187.23,2.6716]
[1736600111426,7.09088946,187.25,187.23,2.6716]
[1736600112022,7.09088946,187.25,187.19,7.09088946]
[1736600112225,7.09088946,187.25,187.17,7.09088946]
[1736600113119,2.6715,187.24,187.2,2.6721]
[1736600115727,7.09088946,187.23,187.2,2.6721]
[1736600118632,7.09088946,187.23,187.17,7.09088946]
[1736600118825,7.09088946,187.23,187.21,2.6719]
[1736600121228,9.76238946,187.24,187.21,2.6719]
[1736600129040,7.09088946,187.24,187.23,2.6717]
[1736600130040,7.09088946,187.24,187.19,7.09088946]
[1736600130239,7.09088946,187.24,187.22,2.6718]
[1736600131241,2.6714,187.25,187.22,2.6718]
[1736600131435,7.09088946,187.24,187.22,2.6718]
[1736600132437,2.6719,187.22,187.16,1.6787]
[1736600132636,7.09088946,187.21,187.14,14.474849]
[1736600133034,2.6722,187.2,187.17,2.6725]
[1736600133642,2.6723,187.19,187.16,2.6727]
[1736600134742,9.76318946,187.19,187.16,2.6727]
[1736600135641,7.09088946,187.19,187.16,2.6727]
[1736600138946,2.6721,187.2,187.16,2.6727]
[1736600140545,2.6723,187.19,187.16,2.6727]
[1736600141944,9.76318946,187.19,187.16,2.6727]
[1736600146247,7.09088946,187.17,187.15,2.6728]
[1736600148950,7.09088946,187.17,187.11,7.09088946]
[1736600149155,9.76348946,187.17,187.13,2.673]
[1736600155855,2.6726,187.17,187.13,2.673]
[1736600156055,7.09088946,187.16,187.13,2.673]
[1736600156455,1.5486,187.23,187.12,7.09088946]
[1736600156656,7.09088946,187.2,187.14,7.09088946]
[1736600158258,7.09088946,187.2,187.19,2.6722]
[1736600161755,7.09088946,187.2,187.14,7.09088946]
[1736600161756,7.09088946,187.2,187.18,2.6723]
[1736600165265,7.09088946,187.2,187.1,1.5392]
[1736600165463,7.09088946,187.16,187.1,8.63008946]
[1736600166465,7.09088946,187.16,187.13,2.673]
[1736600168168,9.76358946,187.16,187.13,2.673]
[1736600171171,7.09088946,187.14,187.08,48.09515298]
[1736600171373,9.76388946,187.14,187.11,2.6733]
[1736600171668,7.09088946,187.14,187.11,2.6733]
[1736600175074,9.76388946,187.14,187.11,2.6733]
[1736600183082,7.09088946,187.12,187.11,2.6733]
[1736600183278,7.09088946,187.12,187.06,5.32280149]
[1736600183472,7.09088946,187.1,187.06,5.32280149]
[1736600184985,7.09088946,187.1,187.06,5.24706295]
[1736600185283,7.09088946,187.1,187.07,2.6739]
[1736600186181,7.09088946,187.08,187.01,1.6686]
[1736600186389,7.09088946,187.06,187.01,1.6686]
[1736600186786,7.09088946,187.06,187.0,46.28071436]
[1736600186988,7.09088946,187.04,187.0,48.95561436]
[1736600187582,7.09088946,187.04,187.0,46.28071436]
[1736600187881,7.09088946,187.04,187.01,2.6748]
[1736600188889,2.6746,187.03,187.0,46.28071436]
[1736600189089,2.6746,187.03,186.99,2.6751]
[1736600190191,2.6748,187.02,186.97,2.6753]
[1736600191091,9.76568946,187.02,186.97,2.6753]
[1736600191484,2.6743,187.05,187.01,2.6748]
[1736600191690,7.09088946,187.04,186.98,7.09088946]
[1736600191890,1.6038,187.08,186.98,7.09088946]
[1736600192090,7.09088946,187.05,187.03,2.6745]
[1736600192290,7.09088946,187.05,186.98,7.09088946]
[1736600192487,7.09088946,187.03,186.98,7.09088946]
[1736600193085,7.09088946,187.03,186.98,2.6752]
[1736600193288,7.09088946,187.03,186.96,7.09088946]
[1736600193891,7.09088946,187.03,186.99,2.675]
[1736600195697,7.09088946,187.03,186.96,7.09088946]
[1736600195698,7.09088946,187.01,186.95,3.1705]
[1736600195898,7.09088946,187.01,186.94,4.96188301]
[1736600196199,7.09088946,186.99,186.96,2.6754]
[1736600197197,7.09088946,186.99,186.94,4.96188301]
[1736600197496,7.09088946,186.99,186.97,2.6754]
[1736600200495,2.6746,187.03,186.99,2.675]
[1736600200703,7.09088946,187.01,186.95,7.09088946]
[1736600201092,7.09088946,187.01,186.99,2.675]
[1736600202104,7.09088946,187.01,186.94,6.52258301]
[1736600202401,7.09088946,187.01,186.98,2.6752]
[1736600206003,7.09088946,186.99,186.98,2.6752]
[1736600206601,7.09088946,186.99,186.94,13.61347247]
[1736600206804,7.09088946,186.99,186.97,2.6754]
[1736600207104,7.09088946,186.99,186.94,4.96188301]
[1736600207301,7.09088946,186.96,186.94,4.96188301]
[1736600208105,7.09088946,186.96,186.93,48.97085273]
[1736600208804,7.09088946,186.96,186.93,2.6758]
[1736600213212,2.6753,186.98,186.93,2.6758]
[1736600213613,7.09088946,186.97,186.93,2.6758]
[1736600214014,7.09088946,186.97,186.9,7.09088946]
[1736600215916,2.6753,186.98,186.9,7.09088946]
[1736600216115,7.09088946,186.96,186.93,2.6758]
[1736600219921,7.09088946,186.96,186.94,2.6757]
[1736600221521,9.76648946,186.96,186.91,2.6762]
[1736600221720,7.09088946,186.94,186.91,2.6762]
[1736600222518,7.09088946,186.94,186.92,2.676]
[1736600226026,7.09088946,186.94,186.9,2.6763]
[1736600226326,7.09088946,186.92,186.9,2.6763]
[1736600236030,2.6755,186.97,186.91,2.6761]
[1736600236328,1.5917,187.0,186.91,7.09088946]
[1736600236529,7.09088946,186.98,186.91,7.09088946]
[1736600238130,7.09088946,186.98,186.96,2.6755]
[1736600239733,7.09088946,186.98,186.91,7.09088946]
[1736600240533,7.09088946,186.98,186.95,2.6755]
[1736600240928,7.09088946,187.0,186.93,7.09088946]
[1736600241531,3.88775393,187.1,186.95,7.09088946]
[1736600241729,1.5498,187.08,186.99,7.09088946]
[1736600241931,7.09088946,187.06,187.04,2.6744]
[1736600242939,7.09088946,187.06,187.02,2.6746]
[1736600243135,7.09088946,187.04,187.02,2.6746]
[1736600244232,7.09088946,187.04,186.97,7.09088946]
[1736600244233,7.09088946,187.04,187.01,2.6748]
[1736600247342,7.09088946,187.04,186.98,2.6752]
[1736600247543,7.09088946,187.02,186.96,7.09088946]
[1736600247744,7.09088946,187.02,186.95,7.09088946]
[1736600248344,7.09088946,187.02,187.0,2.6749]
[1736600248650,7.09088946,187.02,186.95,7.09088946]
[1736600249046,7.09088946,187.0,186.99,2.6751]
[1736600254352,7.09088946,187.0,186.91,4.898]
[1736600254551,7.09088946,186.96,186.91,3.2207]
[1736600255053,7.09088946,186.96,186.91,1.6521]
[1736600255947,7.09088946,186.96,186.95,2.6757]
[1736600262163,7.09088946,186.96,186.91,1.6521]
[1736600262363,7.09088946,186.96,186.94,2.6758]
[1736600268967,7.09088946,186.96,186.89,7.09088946]
[1736600269165,7.09088946,186.96,186.95,2.6757]
[1736600269466,1.5457,187.01,186.89,7.09088946]
[1736600269766,7.09088946,186.96,186.95,2.6757]
[1736600271764,1.5457,187.01,186.93,7.09088946]
[1736600271967,7.09088946,187.01,186.95,7.09088946]